bitfinex/quotes_ETHUSD_20251212
["timestamp","ask_amount","ask_price","bid_price","bid_amount"]
[1765499352381,0.4943,3237.0,3236.2,0.1866]
[1765499352553,0.9833,3236.9,3236.2,0.1866]
[1765499353976,0.489,3236.9,3236.2,0.1866]
[1765499354173,0.9742,3236.9,3236.2,0.1866]
[1765499354475,6.17894216,3236.8,3236.2,0.1866]
[1765499354681,6.17894216,3236.8,3236.2,1.00578305]
[1765499355779,6.17894216,3236.8,3236.2,0.51428305]
[1765499355956,6.17894216,3236.8,3236.3,0.4915]
[1765499357284,6.64104216,3236.8,3236.2,0.1866]
[1765499361487,6.19093434,3236.7,3236.0,0.4915]
[1765499361789,5.72883434,3236.5,3236.0,0.4915]
[1765499362505,3.54462018,3236.1,3235.9,0.001]
[1765499362675,0.93834545,3236.0,3235.9,0.001]
[1765499362861,0.4731,3236.0,3235.9,0.001]
[1765499363365,6.17913306,3236.7,3235.9,0.4862]
[1765499363576,0.489,3236.6,3236.0,0.9767]
[1765499364108,1.16627585,3237.0,3236.5,0.4852]
[1765499364109,0.489,3236.8,3236.5,0.4852]
[1765499364463,3.57848226,3236.8,3236.5,0.4852]
[1765499365168,7.13006452,3236.8,3236.5,0.4852]
[1765499365374,7.13006452,3236.8,3236.3,0.4915]
[1765499366587,4.04058226,3236.8,3236.3,0.4915]
[1765499366893,3.57848226,3236.8,3236.3,0.4915]
[1765499367391,4.04058226,3236.8,3236.3,0.4915]
[1765499368091,7.13006452,3236.8,3236.3,0.4915]
[1765499368394,4.04058226,3236.8,3236.3,0.4915]
[1765499368594,4.04058226,3236.8,3236.3,0.86850935]
[1765499368767,3.57848226,3236.8,3236.3,0.37700935]
[1765499368966,3.57848226,3236.8,3236.4,0.4915]
[1765499369285,3.57848226,3236.8,3236.3,0.37700935]
[1765499369286,7.13006452,3236.8,3236.3,0.37700935]
[1765499369584,7.13006452,3236.8,3236.1,0.68]
[1765499369892,7.13006452,3236.8,3236.2,0.4915]
[1765499372595,6.66796452,3236.8,3236.1,0.1885]
[1765499372797,0.4621,3236.7,3236.1,0.1885]
[1765499372996,3.08966199,3236.6,3236.1,0.1885]
[1765499373389,3.55176199,3236.6,3236.1,1.05712237]
[1765499373795,3.08966199,3236.6,3236.1,0.56562237]
[1765499373964,3.08966199,3236.6,3236.2,0.4915]
[1765499374169,3.0896051,3236.7,3236.5,0.4852]
[1765499375903,6.1792102,3236.7,3236.5,0.4852]
[1765499376400,3.0896051,3236.7,3236.5,0.4852]
[1765499376915,0.4544,3236.6,3236.2,0.4915]
[1765499377207,0.9165,3236.6,3236.1,0.56562237]
[1765499377394,3.08975745,3236.5,3236.1,0.68]
[1765499377981,0.011,3236.2,3235.9,0.001]
[1765499378299,0.489,3236.4,3235.9,0.001]
[1765499378300,0.45,3236.0,3235.9,0.001]
[1765499379597,0.4621,3236.2,3235.9,0.4862]
[1765499379791,3.55204839,3236.3,3235.9,0.4862]
[1765499380475,3.08994839,3236.3,3236.2,0.4852]
[1765499381081,3.08994839,3236.3,3235.9,0.4925]
[1765499382700,3.08963022,3236.7,3236.2,0.6737]
[1765499382701,0.489,3236.7,3236.2,0.6737]
[1765499383002,3.08966199,3236.6,3236.3,0.4852]
[1765499383727,6.17932398,3236.6,3236.3,0.4852]
[1765499384382,6.63162398,3236.6,3236.3,0.4852]
[1765499384905,6.63162398,3236.6,3236.0,0.4818]
[1765499385111,6.63162398,3236.6,3236.0,0.83921177]
[1765499385705,6.17932398,3236.6,3236.1,0.6659]
[1765499385877,3.08966199,3236.6,3236.1,0.6659]
[1765499386084,3.08966199,3236.6,3236.2,0.4818]
[1765499386283,6.17932398,3236.6,3236.2,0.4818]
[1765499386624,3.08966199,3236.6,3236.2,0.4818]
[1765499386989,3.57858725,3236.7,3236.5,0.4781]
[1765499387208,3.57858725,3236.7,3236.6,0.4781]
[1765499387595,4.04918725,3236.7,3236.2,0.4818]
[1765499387994,4.04918725,3236.7,3236.3,0.37560186]
[1765499388193,7.5910745,3236.7,3236.2,0.4818]
[1765499388918,3.57858725,3236.7,3236.6,0.4781]
[1765499389092,0.489,3236.7,3236.6,0.4781]
[1765499391542,3.08937563,3236.9,3236.6,0.4781]
[1765499392220,4.03062324,3237.0,3236.6,0.4781]
[1765499392830,0.4523,3236.9,3236.4,0.4818]
[1765499393391,0.4523,3236.9,3236.3,3.6703814]
[1765499393733,0.4523,3236.9,3236.4,3.81402998]
[1765499394088,0.4523,3236.9,3236.5,0.4818]
[1765499395212,3.57832068,3237.0,3236.8,0.4781]
[1765499395538,3.57801703,3237.3,3236.9,0.4781]
[1765499395916,3.57801703,3237.3,3236.9,0.9599]
[1765499398779,3.57801703,3237.3,3237.0,0.4818]
[1765499399441,0.489,3237.3,3237.0,0.4818]
[1765499399643,0.489,3237.3,3237.2,0.4781]
[1765499399943,3.08894474,3237.4,3237.2,0.4781]
[1765499399944,3.08890295,3237.4,3237.2,0.4781]
[1765499400146,3.08890295,3237.4,3237.3,0.4781]
[1765499400445,0.491,3237.6,3237.3,0.4781]
[1765499400638,3.57974939,3237.6,3237.3,0.4781]
[1765499401342,4.03204939,3237.6,3237.3,0.4781]
[1765499401537,0.4706,3237.4,3236.9,0.4818]
[1765499401948,0.002,3237.6,3237.3,0.6708]
[1765499402157,0.002,3237.6,3237.5,0.4781]
[1765499402648,0.002,3237.6,3237.5,0.9599]
[1765499404130,0.002,3237.6,3237.5,4.62917837]
[1765499405350,0.4752,3237.6,3237.0,0.35712029]
[1765499405551,0.4752,3237.6,3237.3,0.58047529]
[1765499405749,0.4752,3237.6,3237.2,0.58047529]
[1765499405750,0.002,3237.6,3237.2,0.58047529]
[1765499405952,0.002,3237.6,3237.2,0.4818]
[1765499406827,0.002,3237.6,3237.1,0.1952]
[1765499407027,0.4543,3237.6,3237.1,0.77567529]
[1765499407230,0.4543,3237.6,3237.1,3.76618176]
[1765499407455,0.002,3237.6,3237.2,3.08907301]
[1765499407651,0.002,3237.6,3237.2,3.57087301]
[1765499408049,0.002,3237.6,3237.2,3.08907301]
[1765499408359,0.002,3237.6,3237.5,0.4781]
[1765499409538,0.4752,3237.6,3237.2,0.63734521]
[1765499410055,0.4752,3237.6,3237.2,1.11914521]
[1765499411143,0.4752,3237.6,3237.2,4.20822763]
[1765499411650,0.4752,3237.6,3237.2,1.11914521]
[1765499412050,0.4752,3237.6,3237.2,4.20822847]
[1765499412840,3.56392769,3237.6,3237.2,1.11914521]
[1765499413253,3.56392769,3237.6,3237.2,0.63734521]
[1765499413558,0.002,3237.6,3237.5,0.4617]
[1765499414351,0.002,3237.6,3237.5,0.9374]
[1765499415931,0.002,3237.6,3237.5,0.4617]
[1765499416127,0.002,3237.6,3237.5,4.02620308]
[1765499420966,0.002,3237.6,3237.5,8.5097244]
[1765499421153,0.002,3237.6,3237.5,10.04420259]
[1765499421648,0.002,3237.6,3237.5,36.14914459]
[1765499422844,0.002,3237.6,3237.5,24.11140559]
[1765499423065,0.002,3237.6,3237.5,24.60040559]
[1765499423445,0.002,3237.6,3237.5,25.00590959]
[1765499425664,0.002,3237.6,3237.5,13.35005759]
[1765499425863,0.002,3237.6,3237.5,10.78947159]
[1765499426393,0.002,3238.3,3238.0,0.870504]
[1765499426677,0.002,3238.3,3238.2,0.465]
[1765499426971,0.002,3238.3,3238.2,4.13361067]
[1765499431282,0.4565,3238.3,3238.2,0.58047529]
[1765499432148,0.4565,3238.3,3237.9,3.57738409]
[1765499432388,0.4565,3238.3,3238.0,0.35773841]
[1765499434969,0.9194,3238.3,3238.0,0.35773841]
[1765499435169,0.9194,3238.3,3237.7,3.54139552]
[1765499435170,0.4629,3238.1,3237.8,0.58047529]
[1765499435392,0.0045,3238.0,3237.6,4.65665469]
[1765499435570,0.0045,3238.0,3237.7,0.58047529]
[1765499435973,0.0045,3238.0,3237.7,3.66905184]
[1765499437065,0.0045,3238.0,3237.8,3.08850778]
[1765499437792,0.0045,3238.0,3237.8,0.58047529]
[1765499437997,0.45,3237.9,3237.7,3.66908535]
[1765499438170,0.45,3237.9,3237.8,0.41580854]
[1765499440285,0.6429,3237.9,3237.2,0.92712919]
[1765499440487,0.9052,3237.8,3237.1,0.1952]
[1765499440727,0.4501,3237.7,3237.2,3.57805156]
[1765499440932,0.4501,3237.7,3237.3,0.68624203]
[1765499441418,0.4501,3237.7,3237.3,3.77522098]
[1765499441782,0.4501,3237.7,3237.3,3.77523116]
[1765499443603,0.4911,3238.1,3237.6,0.4828]
[1765499443989,0.4911,3238.1,3237.4,1.03497529]
[1765499444285,0.4911,3238.1,3237.4,1.87379533]
[1765499444824,0.002,3238.3,3238.0,0.4828]
[1765499445020,3.0900443,3238.3,3238.0,0.4828]
[1765499445200,0.4599,3238.1,3237.6,0.4545]
[1765499445519,0.4599,3238.1,3237.7,3.08861228]
[1765499445730,0.002,3238.3,3238.0,0.4828]
[1765499446091,0.4931,3238.3,3238.0,0.4828]
[1765499446292,0.4931,3238.3,3237.8,0.35431123]
[1765499446600,3.58114852,3238.3,3237.8,0.35431123]
[1765499448920,3.09004852,3238.3,3237.8,0.35431123]
[1765499449097,0.4192,3237.9,3237.6,3.57765133]
[1765499449688,0.4192,3237.9,3237.6,4.03215133]
[1765499450021,0.0042,3237.7,3237.4,1.90829533]
[1765499450195,0.0042,3237.7,3237.4,1.06947529]
[1765499450395,0.1881,3237.9,3237.4,4.15833813]
[1765499450596,0.4911,3238.0,3237.4,4.61283813]
[1765499450829,0.4911,3238.0,3237.5,0.4545]
[1765499451120,0.4911,3238.0,3237.5,1.22467366]
[1765499451806,0.4192,3237.6,3237.1,3.79]
[1765499452010,5.72219479,3237.7,3237.2,3.6694858]
[1765499452223,0.4192,3237.3,3237.2,3.6694858]
[1765499453719,0.9096,3237.3,3236.2,9.26671501]
[1765499453885,5.72219479,3237.7,3235.9,6.8812638]
[1765499453886,0.0049,3237.1,3236.5,7.1230149]
[1765499454088,0.0049,3237.1,3236.6,1.29277678]
[1765499454290,0.4911,3237.2,3236.6,1.74727678]
[1765499454525,0.4911,3237.4,3236.7,0.4545]
[1765499455218,0.4911,3237.4,3236.9,0.58047529]
[1765499455400,0.4911,3237.4,3236.9,0.99291993]
[1765499456085,0.489,3237.7,3237.3,0.4828]
[1765499456524,0.9801,3237.7,3237.3,0.4828]
[1765499457016,0.4911,3237.6,3237.3,0.4828]
[1765499457788,0.4911,3237.6,3237.3,3.57174059]
[1765499457989,0.489,3237.7,3237.3,3.57174059]
[1765499458189,0.1881,3237.9,3237.6,0.4828]
[1765499458423,0.1881,3237.9,3237.3,3.81399768]
[1765499458424,3.57731035,3238.1,3237.8,0.4828]
[1765499458598,3.57731035,3238.1,3237.4,0.58047529]
[1765499458799,4.06841035,3238.1,3237.4,0.58047529]
[1765499459422,0.4911,3238.0,3237.4,0.58047529]
[1765499459625,3.57729462,3238.1,3237.5,0.4394473]
[1765499459796,0.4911,3238.0,3237.5,0.4394473]
[1765499459991,0.4192,3237.6,3237.5,0.4394473]
[1765499461196,0.9096,3237.6,3237.5,0.4394473]
[1765499461430,0.9096,3237.6,3237.3,0.72505709]
[1765499461598,0.0049,3237.4,3237.3,0.72505709]
[1765499462094,0.496,3237.4,3237.3,0.72505709]
[1765499462325,0.0049,3237.4,3237.3,0.72505709]
[1765499462527,3.58495939,3237.4,3236.9,3.66984238]
[1765499462715,0.4143,3237.3,3236.9,3.66984238]
[1765499462914,0.4143,3237.3,3237.0,3.0892486]
[1765499462915,0.9054,3237.3,3237.0,3.0892486]
[1765499463121,0.4143,3237.3,3237.2,0.58047529]
[1765499463322,0.4143,3237.3,3237.1,0.58047529]
[1765499463500,3.57987222,3237.6,3237.1,0.58047529]
[1765499463698,0.4911,3237.5,3237.1,3.66961333]
[1765499464902,3.57764554,3237.7,3237.1,4.25931333]
[1765499465102,0.4911,3237.6,3237.0,0.58047529]
[1765499465299,5.72219479,3237.5,3237.0,0.58047529]
[1765499465503,0.4911,3237.6,3237.0,0.58047529]
[1765499465721,0.4192,3237.1,3236.3,0.92735559]
[1765499465922,5.72219479,3236.8,3236.2,0.001]
[1765499466129,0.4151,3236.3,3236.2,0.3774171]
[1765499466361,0.4151,3236.3,3236.2,0.001]
[1765499466844,0.4911,3236.6,3236.2,3.09104387]
[1765499467017,0.46021435,3236.6,3236.2,3.09104387]
[1765499467615,5.72219479,3236.8,3236.2,0.58147529]
[1765499468035,8.81170086,3236.8,3236.2,3.67147536]
[1765499469040,0.4599,3236.3,3236.2,3.67147536]
[1765499469338,0.4599,3236.3,3236.2,1.25764555]
[1765499469508,0.4599,3236.3,3236.2,0.67717026]
[1765499469710,0.4599,3236.3,3236.2,0.58147529]
[1765499470534,0.4599,3236.3,3236.2,3.67151916]
[1765499470934,9.20060086,3236.8,3236.2,4.15431916]
[1765499471637,3.47840607,3236.8,3236.2,4.15431916]
[1765499471834,0.489,3237.2,3236.3,0.4545]
[1765499472036,5.72219479,3237.5,3236.3,1.03497529]
[1765499472353,6.21329479,3237.8,3236.6,30.0]
[1765499472544,3.76555991,3237.9,3237.4,0.6655]
[1765499472851,3.76555991,3237.9,3237.4,0.4828]
[1765499472852,4.26595991,3237.9,3237.4,0.4828]
[1765499473151,0.4984,3237.8,3237.1,0.1761]
[1765499473449,6.95602567,3237.8,3236.7,7.24860835]
[1765499473651,6.10359479,3237.1,3236.6,3.67011301]
[1765499473961,6.10359479,3237.1,3236.6,4.15911301]
[1765499474148,6.10359479,3237.1,3236.6,0.489]
[1765499474349,0.4972,3237.0,3236.7,0.58047529]
[1765499474735,0.005,3236.8,3236.7,3.67004182]
[1765499474941,0.005,3236.8,3236.7,4.3949119]
[1765499475654,0.3826,3236.8,3236.7,4.3949119]
[1765499475859,0.3826,3236.8,3236.7,0.72487008]
[1765499476028,0.3826,3236.8,3236.7,4.3949119]
[1765499476954,0.496,3237.3,3236.7,4.8710119]
[1765499477133,0.489,3237.4,3236.7,7.96057843]
[1765499477326,0.489,3237.4,3236.7,4.8710119]
[1765499477327,0.4984,3237.3,3236.7,4.8710119]
[1765499478428,0.4984,3237.3,3236.8,0.79606527]
[1765499479430,0.489,3237.4,3236.8,0.79606527]
[1765499479760,0.489,3237.4,3236.9,0.4613]
[1765499480330,0.4024,3237.0,3236.8,0.79606527]
[1765499480530,0.4024,3237.0,3236.7,3.67004182]
[1765499481854,3.57793307,3237.4,3236.7,3.67004182]
[1765499482736,0.489,3237.4,3236.7,3.67004182]
[1765499482935,0.489,3237.4,3236.8,0.4613]
[1765499483131,0.489,3237.4,3236.9,0.72209083]
[1765499483559,3.5778994,3237.4,3236.9,0.72209083]
[1765499483760,4.0550994,3237.4,3236.9,0.72209083]
[1765499484158,0.489,3237.4,3236.9,0.72209083]
[1765499484339,0.489,3237.4,3236.9,1.18339083]
[1765499484541,0.489,3237.4,3237.0,0.17638661]
[1765499484968,0.4596,3237.1,3237.0,0.17638661]
[1765499485137,0.4596,3237.1,3236.5,0.489]
[1765499485342,0.0042,3237.0,3236.5,0.489]
[1765499485842,0.0042,3237.0,3236.7,0.58047529]
[1765499486062,0.0042,3237.0,3236.7,3.67003131]
[1765499486272,0.4198,3237.3,3236.8,3.45646058]
[1765499486573,6.65480846,3237.5,3236.8,4.03693587]
[1765499486864,3.56617022,3237.4,3236.8,4.03693587]
[1765499487271,3.08897022,3237.4,3236.8,4.03693587]
[1765499487575,0.4772,3237.3,3236.8,4.03693587]
[1765499487874,0.4772,3237.3,3236.8,0.94747842]
[1765499488171,0.4024,3236.9,3236.8,0.94747842]
[1765499488759,0.8788,3236.9,3236.5,0.489]
[1765499489070,0.8788,3236.9,3236.5,1.06947529]
[1765499489241,0.8788,3236.9,3236.6,0.58047529]
[1765499489873,3.08923226,3237.1,3236.2,0.001]
[1765499489874,0.4024,3236.7,3236.2,0.001]
[1765499490172,0.3984,3236.3,3236.2,0.001]
[1765499490975,0.3984,3236.3,3236.2,0.58147529]
[1765499491273,0.3984,3236.3,3236.2,0.001]
[1765499491475,3.48834839,3236.3,3236.2,0.001]
[1765499491680,3.96554839,3236.3,3236.2,0.001]
[1765499492281,5.16008146,3236.3,3236.2,0.001]
[1765499497872,13.63166444,3236.3,3236.2,0.001]
[1765499498752,5.74055675,3236.3,3236.2,0.001]
[1765499499798,13.63166444,3236.3,3236.2,0.001]
[1765499503559,0.008,3235.7,3235.5,0.001]
[1765499503859,1.276004,3235.6,3235.5,0.001]
[1765499504186,4.85722088,3235.6,3235.5,0.001]
[1765499504851,4.45171688,3235.6,3235.5,0.001]
[1765499507675,3.96271688,3235.6,3235.5,0.001]
[1765499507866,5.17555072,3235.6,3235.5,0.001]
[1765499510097,5.45856069,3235.6,3235.5,0.001]
[1765499510473,0.98597929,3235.5,3234.8,0.001]
[1765499510678,1.48827929,3235.5,3234.8,0.001]
[1765499510879,3.48093749,3235.5,3234.8,0.001]
[1765499512100,6.57164989,3235.5,3234.8,0.001]
[1765499512597,1.55691397,3235.4,3234.8,0.001]
[1765499513196,4.80991397,3235.4,3234.8,0.001]
[1765499513402,3.44758095,3235.4,3234.8,0.001]
[1765499514397,4.23897929,3235.3,3234.8,0.001]
[1765499514596,4.74497929,3235.3,3234.8,0.001]
[1765499515298,4.86877977,3235.3,3234.8,0.001]
[1765499515490,6.56923252,3235.3,3234.8,0.001]
[1765499516506,9.66013599,3235.3,3234.8,0.001]
[1765499516674,24.2311811,3235.3,3234.8,0.001]
[1765499516874,0.65710997,3235.1,3234.8,0.001]
[1765499517172,1.55161397,3235.1,3234.8,0.001]
[1765499517373,2.76604781,3235.1,3234.8,0.001]
[1765499517568,8.50611863,3235.1,3234.8,0.001]
[1765499518000,7.23565011,3235.0,3234.8,0.001]
[1765499518925,10.32684021,3235.0,3234.8,0.001]
[1765499519111,12.31949841,3235.0,3234.8,0.001]
[1765499519809,0.405504,3234.8,3234.6,0.001]
[1765499519973,7.52826008,3234.7,3234.2,0.001]
[1765499520180,6.10727082,3234.3,3234.2,0.001]
[1765499520509,6.59627082,3234.3,3234.2,0.001]
[1765499520701,7.08687082,3234.3,3234.2,0.001]
[1765499520900,10.17872995,3234.3,3234.2,0.001]
[1765499522014,10.75920524,3234.3,3234.2,0.001]
[1765499522218,0.58047529,3233.9,3233.8,0.001]
[1765499522380,5.74007082,3234.2,3233.8,0.4788]
[1765499522587,3.09185913,3234.3,3234.2,0.5915]
[1765499522812,3.58085913,3234.3,3234.2,0.5915]
[1765499522983,3.58085913,3234.3,3234.2,1.0693]
[1765499523712,3.09185913,3234.3,3234.2,1.0693]
[1765499524889,0.489,3234.7,3234.2,1.0693]
[1765499524890,6.18315068,3234.6,3234.2,1.0693]
[1765499525088,6.18315068,3234.6,3234.2,0.1322]
[1765499525411,3.09157237,3234.6,3234.5,0.4593]
[1765499525614,3.58050417,3234.7,3234.5,0.4593]
[1765499525817,3.58050417,3234.7,3234.6,0.9371]
[1765499529116,0.489,3234.8,3234.6,0.9371]
[1765499529313,0.489,3234.8,3234.7,0.9371]
[1765499529512,9.27276901,3235.3,3234.7,0.9371]
[1765499529818,0.489,3235.2,3234.5,0.4778]
[1765499531112,6.1821891,3235.1,3234.5,0.4778]
[1765499531486,3.09109455,3235.1,3235.0,0.4593]
[1765499531819,3.58009455,3235.1,3235.0,0.4593]
[1765499532029,3.09080793,3235.4,3235.0,0.9371]
[1765499532202,0.489,3235.5,3235.1,0.657]
[1765499532383,0.489,3235.5,3235.3,0.4593]
[1765499532696,0.489,3235.5,3235.4,0.4593]
[1765499533116,3.5797124,3235.5,3235.4,0.478]
[1765499533284,3.93768364,3235.5,3235.4,0.478]
[1765499533482,3.5797124,3235.5,3235.4,0.478]
[1765499534330,10.6380372,3235.5,3234.5,0.4521]
[1765499534491,0.004,3235.2,3234.6,0.4521]
[1765499534818,0.489,3235.1,3234.2,0.1322]
[1765499534990,0.9585,3235.1,3234.2,0.5843]
[1765499535191,9.2735703,3235.0,3234.2,0.5843]
[1765499535388,1.02320703,3234.9,3234.2,0.5843]
[1765499535694,1.02320703,3234.9,3234.3,0.4521]
[1765499536117,1.02320703,3234.9,3234.2,0.1322]
[1765499536511,1.02320703,3234.9,3234.2,0.6255]
[1765499536922,1.02320703,3234.9,3234.3,0.4933]
[1765499537085,6.1823802,3235.0,3234.8,0.457]
[1765499537291,0.58047529,3235.1,3234.9,0.457]
[1765499537486,0.489,3235.0,3234.9,0.457]
[1765499538518,0.489,3235.0,3234.5,0.4933]
[1765499538519,0.8984,3235.0,3234.5,0.4933]
[1765499539029,0.8984,3235.0,3234.2,0.1322]
[1765499539317,9.27385698,3234.9,3234.2,0.6255]
[1765499539521,6.18257132,3234.9,3234.2,0.6255]
[1765499539690,6.18257132,3234.9,3234.3,0.4933]
[1765499539887,3.09128566,3234.9,3234.8,0.457]
[1765499540091,3.58028566,3234.9,3234.8,0.457]
[1765499540323,4.66029582,3234.9,3234.8,0.457]
[1765499540494,4.66029582,3234.9,3233.8,0.001]
[1765499540495,0.98597929,3234.8,3233.8,0.001]
[1765499540693,0.0047,3234.4,3233.9,0.4933]
[1765499540888,0.489,3234.3,3233.9,0.4933]
[1765499541089,0.489,3234.2,3233.9,0.4933]
[1765499541450,0.489,3234.2,3233.8,0.001]
[1765499541451,6.18410066,3234.1,3233.8,0.001]
[1765499541718,0.4928,3233.9,3233.8,0.001]
[1765499542392,1.0844,3233.9,3233.8,0.001]
[1765499543224,0.49,3233.9,3233.8,0.458]
[1765499543407,0.49,3233.9,3233.8,0.001]
[1765499543408,4.07134156,3233.9,3233.8,0.001]
[1765499545022,3.09224156,3233.9,3233.8,0.458]
[1765499545231,3.58224156,3233.9,3233.8,0.458]
[1765499545610,4.07134156,3233.9,3233.8,0.001]
[1765499546113,3.58224156,3233.9,3233.8,0.458]
[1765499546328,3.58224156,3233.9,3233.8,0.9513]
[1765499546818,3.58224156,3233.9,3233.8,0.458]
[1765499547019,3.09224156,3233.9,3233.8,0.458]
[1765499547232,3.58224156,3233.9,3233.8,0.458]
[1765499547734,0.49,3233.9,3233.8,0.458]
[1765499548238,0.49,3233.9,3233.8,0.9513]
[1765499548435,9.27557739,3234.3,3233.8,0.9513]
[1765499548642,3.09185913,3234.3,3234.2,0.457]
[1765499548958,3.58185913,3234.3,3234.2,0.457]
[1765499549105,3.09185913,3234.3,3234.2,0.457]
[1765499549306,3.58185913,3234.3,3234.2,0.9503]
[1765499550835,3.09185913,3234.3,3234.2,0.9503]
[1765499551012,3.58185913,3234.3,3234.2,0.457]
[1765499551736,3.58185913,3234.3,3234.2,0.9503]
[1765499552053,0.4674,3235.5,3234.2,0.9503]
[1765499552211,6.18161586,3235.4,3235.0,0.457]
[1765499552409,0.49,3235.3,3235.0,0.457]
[1765499552847,1.07047529,3235.3,3235.0,0.457]
[1765499553347,1.07047529,3235.3,3234.1,0.1742]
[1765499553348,7.56781738,3235.1,3234.1,0.1742]
[1765499553653,0.0047,3234.8,3234.1,0.1742]
[1765499553814,0.49,3234.7,3234.1,0.6675]
[1765499554320,6.18314474,3234.6,3234.1,0.1742]
[1765499554737,9.74211711,3234.6,3234.1,0.1742]
[1765499555528,0.4674,3234.5,3233.9,0.4933]
[1765499555740,9.27471711,3234.6,3233.9,0.4933]
[1765499556342,6.18314474,3234.6,3233.9,0.4933]
[1765499557422,7.2063499,3234.6,3233.9,0.4933]
[1765499558349,3.09157237,3234.6,3234.5,0.457]
[1765499558856,3.58157237,3234.6,3234.5,0.9503]
[1765499560551,3.09125512,3235.0,3234.5,0.9503]
[1765499560743,0.49,3234.9,3234.6,0.457]
[1765499560935,1.41734442,3234.9,3234.6,0.457]
[1765499561345,1.41734442,3234.9,3234.8,0.457]
[1765499562150,1.41634442,3234.9,3234.8,0.457]
[1765499562730,4.50763008,3234.9,3234.8,0.457]
[1765499563854,8.00701574,3234.9,3234.4,0.6339]
[1765499564026,11.0983014,3234.9,3234.4,0.6339]
[1765499564224,11.5651014,3234.9,3234.4,0.6339]
[1765499564425,1.62891014,3234.8,3234.1,0.6419]
[1765499564653,1.62891014,3234.8,3233.9,0.4597]
[1765499564858,9.77243037,3234.7,3233.9,0.4597]
[1765499565762,3.09147679,3234.7,3234.6,0.6661]
[1765499565931,3.58047679,3234.7,3234.6,0.6661]
[1765499566551,3.58047679,3234.7,3234.6,0.4923]
[1765499567256,3.09147679,3234.7,3234.6,0.4923]
[1765499567552,3.09147679,3234.7,3234.6,0.952]
[1765499567728,3.58047679,3234.7,3234.6,0.952]
[1765499568953,0.489,3234.7,3234.6,0.952]
[1765499569264,6.18221405,3235.1,3234.6,0.952]
[1765499569427,3.09109455,3235.1,3235.0,0.4923]
[1765499569732,6.67121405,3235.1,3234.7,0.4597]
[1765499570356,6.67121405,3235.1,3234.5,0.4597]
[1765499570861,0.489,3235.0,3234.5,0.4597]
[1765499571230,0.1816,3234.9,3234.1,0.1822]
[1765499571559,0.1816,3234.9,3234.2,0.4597]
[1765499571738,0.1816,3234.9,3234.2,1.04017529]
[1765499571938,0.987,3235.0,3234.2,1.04017529]
[1765499572124,0.987,3235.0,3234.3,0.4597]
[1765499572741,0.489,3235.0,3234.3,0.4597]
[1765499572943,6.18257132,3234.9,3234.3,0.83308382]
[1765499573457,6.18257132,3234.9,3234.4,0.4597]
[1765499575964,3.09128566,3234.9,3234.8,0.4923]
[1765499576166,3.58028566,3234.9,3234.8,0.4923]
[1765499577446,6.67157132,3234.9,3234.6,0.4597]
[1765499577763,7.05497132,3234.9,3234.6,0.4597]
[1765499577967,7.05497132,3234.9,3234.3,0.4597]
[1765499579153,3.96368566,3234.9,3234.3,0.4597]
[1765499579468,6.67157132,3234.9,3234.3,0.89113162]
[1765499579870,6.67157132,3234.9,3234.4,0.4581]
[1765499580351,3.58028566,3234.9,3234.4,0.4581]
[1765499580740,3.58028566,3234.9,3234.8,0.4949]
[1765499582271,7.07587132,3234.9,3234.4,0.4581]
[1765499582475,6.67157132,3234.9,3234.4,0.4581]
[1765499582678,7.14847132,3234.9,3234.4,0.4581]
[1765499582878,6.67157132,3234.9,3234.4,0.4581]
[1765499583780,3.58028566,3234.9,3234.4,0.4581]
[1765499583984,3.58028566,3234.9,3234.4,0.85624767]
[1765499584279,6.67157132,3234.9,3234.4,0.85624767]
[1765499584481,6.67157132,3234.9,3234.5,0.4581]
[1765499584978,0.3995,3234.6,3233.6,0.4581]
[1765499585179,5.73691376,3234.0,3233.6,0.4581]
[1765499585477,0.489,3233.9,3233.4,1.03857529]
[1765499585851,3.98074156,3233.9,3233.4,0.4581]
[1765499586462,3.98074156,3233.9,3233.4,1.03857529]
[1765499586666,0.489,3233.9,3233.8,0.4959]
[1765499586976,0.489,3233.9,3233.8,0.954]
[1765499587172,6.1833359,3234.5,3233.8,0.954]
[1765499587173,3.09166795,3234.5,3233.8,0.954]
[1765499587356,3.09166795,3234.5,3234.4,0.4949]
[1765499587557,4.19899344,3234.5,3234.4,0.4949]
[1765499587758,3.09160617,3234.6,3234.4,0.953]
[1765499587956,6.1821891,3235.1,3234.5,0.4949]
[1765499588174,0.489,3235.0,3234.5,0.4949]
[1765499588580,0.489,3235.0,3234.5,0.953]
[1765499588760,0.4769,3234.9,3234.5,0.4949]
[1765499588959,1.50081836,3234.9,3234.5,0.4949]
[1765499589174,1.02391836,3234.9,3234.5,0.4949]
[1765499589457,0.4867,3234.6,3234.2,0.6278]
[1765499589678,0.489,3234.5,3234.2,0.6278]
[1765499589860,0.489,3234.5,3234.3,0.4581]
[1765499590189,3.58066795,3234.5,3234.4,0.4949]
[1765499590559,0.489,3234.5,3234.4,0.953]
[1765499591206,3.58066795,3234.5,3234.4,0.4949]
[1765499591684,6.6723359,3234.5,3234.2,0.1697]
[1765499591887,7.0718359,3234.5,3234.1,0.4581]
[1765499592087,3.98016795,3234.5,3234.1,0.6278]
[1765499592286,3.58066795,3234.5,3234.4,0.4949]
[1765499594014,3.98016795,3234.5,3234.1,0.6278]
[1765499594678,3.98016795,3234.5,3234.2,0.484]
[1765499594885,3.58066795,3234.5,3234.2,0.484]
[1765499595081,3.58066795,3234.5,3234.4,0.4911]
[1765499595395,3.58066795,3234.5,3234.2,0.484]
[1765499595777,3.58066795,3234.5,3234.4,0.4911]
[1765499595978,6.6723359,3234.5,3234.1,0.1697]
[1765499596177,7.1633359,3234.5,3233.9,0.484]
[1765499596386,7.1633359,3234.5,3233.8,0.001]